Cogmind - Beta 13 @@@ ROGUE MODE // 2024.03.11 @ 20:55:29 Player: Baxter Result: Destroyed by Y-45 Defender with Beam Rifle Performance ------------- Evolutions (2) 1000 Regions Visited (7) 1400 Robots Destroyed (136) 680 Value Destroyed (3532) 3532 Prototype IDs (5) 100 Alien Tech Used (0) 0 Bonus (122) 122 TOTAL SCORE: 6834 Bonus ------- High Alert Combat Kills 105 Follower Combat Kills 37 Friendly Fire -20 Cogmind --------- Core Integrity 0/550 Matter 300/300 Energy 100/100 System Corruption 0% Temperature Cool (27) Movement Core (700) Ox13 Location -8/Materials Parts ------- > --- POWER (1) -------- (None) > --- PROPULSION (2) --- (None) > --- UTILITY (6) ------ High-capacity Storage Unit Advanced Terrain Scan Processor Hacking Suite Hacking Suite > --- WEAPON (2) ------- (None) > --- INVENTORY (20) --- Improved Ion Engine Aerolev Unit Aerolev Unit Improved VTOL Module Medium Storage Unit Compact Matter Pod (150) Experimental Sensor Array Improved Terrain Scanner Light Armor Plating Hardened Light Armor Plating Hardened Medium Armor Plating Hacking Suite Hacking Suite Authchip [Propulsion] Authchip [Device] Authchip [Device] Long-range Tractor Beam High-powered Shotgun Peak State ------------ > --- POWER ------------ Light Angular Momentum Engine > --- PROPULSION ------- Wheel Compact Wheel > --- UTILITY ---------- High-capacity Storage Unit Experimental Sensor Array Improved Terrain Scanner Advanced Terrain Scan Processor Hacking Suite Hacking Suite > --- WEAPON ----------- Gauss Rifle Gauss Rifle > --- INVENTORY -------- Light Nuclear Core Improved Treads Improved VTOL Module Medium Storage Unit Compact Matter Pod Signal Interpreter Improved Terrain Scanner Hardened Light Armor Plating Hardened Light Armor Plating Hardened Light Armor Plating Hardened Medium Armor Plating Authchip [Propulsion] Authchip [Device] Authchip [Device] Long-range Tractor Beam Beamcaster Gauss Rifle Gauss Rifle Rocket Launcher Makeshift Hammer [Rating: 44] Favorites ----------- Power Light Ion Engine Engine Light Ion Engine Power Core Light Nuclear Core Propulsion Wheel Treads Light Treads Wheel Wheel Hover Unit Aerolev Unit Flight Unit Improved Flight Unit Utility High-capacity Storage Unit Device Improved Terrain Scanner Storage High-capacity Storage Unit Processor Terrain Scan Processor Hackware Hacking Suite Protection Light Armor Plating Weapon Shotgun Energy Gun EM Shotgun Ballistic Gun Shotgun Launcher Rocket Launcher Impact Weapon Makeshift Hammer Build | -11 -10 -10 -9 -9 -9 -8 -8 ------- Run | Yrd Mat Min Mat Min Exi Min Mat Slots Evolved 4 | . . . 2 . . . 2 Power . | . . . . . . . . Propulsion . | . . . . . . . . Utility 4 | . . . 2 . . . 2 Weapon . | . . . . . . . . Parts Attached 189 | 7 16 13 65 16 2 1 69 Power 14 | 1 1 1 6 1 . . 4 Engine 9 | 1 1 1 4 . . . 2 Core 5 | . . . 2 1 . . 2 Reactor . | . . . . . . . . Propulsion 37 | 2 3 4 11 4 . . 13 Treads 9 | 1 1 . 3 1 . . 3 Leg . | . . . . . . . . Wheel 25 | 1 2 4 7 3 . . 8 Hover 1 | . . . . . . . 1 Flight 2 | . . . 1 . . . 1 Utility 76 | 2 3 3 24 7 . . 37 Device 31 | 1 . 1 10 4 . . 15 Storage 5 | 1 2 . 2 . . . . Processor 3 | . . . 1 . . . 2 Hackware 3 | . . . 1 . . . 2 Protection 34 | . 1 2 10 3 . . 18 Artifact . | . . . . . . . . Weapon 62 | 2 9 5 24 4 2 1 15 Energy Gun 7 | 1 5 . . . . . 1 Energy Cannon . | . . . . . . . . Ballistic Gun 39 | 1 4 3 18 4 . 1 8 Ballistic Cannon . | . . . . . . . . Launcher 2 | . . . . . 1 . 1 Special Weapon . | . . . . . . . . Impact Weapon 14 | . . 2 6 . 1 . 5 Slashing Weapon . | . . . . . . . . Piercing Weapon . | . . . . . . . . Special Melee Weapon . | . . . . . . . . Unidentified Prototypes 5 | . . . 2 . . . 3 Parts Lost 30 | . 3 2 7 1 . . 17 Power 3 | . 1 . . . . . 2 Propulsion 8 | . . . 3 . . . 5 Utility 9 | . . 1 4 . . . 4 Weapon 10 | . 2 1 . 1 . . 6 Highest Loss Streak 8 | . 2 1 2 1 . . 8 To Critical Strikes . | . . . . . . . . Average Slot Usage (%) 99 | . 99 100 99 99 100 98 97 Engine 6 | . 13 14 7 . . . 5 Core 4 | . . . 3 11 11 9 3 Treads 4 | . 14 8 4 . . . . Wheel 17 | . 14 19 17 21 22 22 15 Device 6 | . 2 8 8 4 . . 11 Storage 12 | . 19 14 11 11 11 11 9 Processor 6 | . . . 3 11 11 11 11 Hackware 8 | . . . 9 11 11 11 15 Protection 7 | . 5 5 10 6 11 11 6 Energy Gun 4 | . 19 13 . . . . . Ballistic Gun 14 | . 8 3 20 21 11 9 10 Impact Weapon 3 | . . 10 1 . 6 11 6 Naked Turns . | . . . . . . . . Heaviest Build 67 | 12 52 52 60 58 57 57 67 Greatest Support 26 | 20 20 26 20 26 26 26 26 Greatest Overweight (x) 21 | 2 5 3 5 2 2 2 21 Average Overweight (x) 2 | . 4 2 3 2 2 1 2 Largest Inventory Capacity 20 | 8 20 20 20 20 20 20 20 Average Capacity 19 | 7 19 20 20 20 20 20 20 Most Carried 20 | 7 20 20 20 20 20 20 20 Average Carried 19 | 4 17 19 19 19 20 19 18 Final Capacity 20 | 8 20 20 20 20 20 20 20 Final Carried 20 | 7 20 20 20 20 20 20 18 Class Distribution -------------------- 51% | Scavenger-Mutant 35% | Mutant 9% | Scavenger-Assassin Dominant Class ---------------- Mutant | -10/Materials Mutant | -10/Mines Scavenger-Mutant | -9/Materials Scavenger-Mutant | -9/Mines Scavenger-Mutant | -9/Exiles Scavenger-Mutant | -8/Mines Scavenger-Assassin | -8/Materials Resources | -11 -10 -10 -9 -9 -9 -8 -8 ----------- Run | Yrd Mat Min Mat Min Exi Min Mat Matter Collected 4302 | 273 431 150 1408 473 75 10 1482 Remotely 191 | 152 39 . . . . . . Salvage Created 5316 | 75 572 132 1338 603 197 247 2152 Parts 258 | 2 38 5 99 29 1 3 81 Haulers Intercepted 9 | . 2 . 4 . . . 3 Recyclers Shooed 3 | . . . . 2 . . 1 Parts Field Recycled . | . . . . . . . . Retrieved Matter . | . . . . . . . . Parts Self-Destructed . | . . . . . . . . Prevented . | . . . . . . . . Kills | -11 -10 -10 -9 -9 -9 -8 -8 ------- Run | Yrd Mat Min Mat Min Exi Min Mat Combat Hostiles Destroyed 85 | . 11 5 28 6 . 5 30 Melee 5 | . . . . . . 1 4 Guns 69 | . 10 4 28 6 . . 21 AOE 2 | . . 1 . . . . 1 Classes Destroyed 14 | 1 7 1 1 3 . . 1 Worker 13 | . 1 . 4 . . . 8 Builder 6 | . 1 . 3 1 . . 1 Tunneler 2 | . . . . 1 . . 1 Hauler 9 | . 2 . 4 . . . 3 Recycler 6 | 1 . . 1 3 . . 1 Mechanic 2 | . . . . 1 . . 1 Operator 6 | . 1 . 3 . . . 2 Watcher 10 | . 2 . 5 . . . 3 Swarmer 14 | . 3 . 11 . . . . Grunt 49 | . 8 2 12 3 . 5 19 Brawler 2 | . . . . 1 . . 1 Duelist 1 | . . . . . . . 1 Sentry 16 | . . . 5 2 . . 9 Assembled 3 | . . 3 . . . . . Best Kill Streak 13 | 1 2 2 10 5 . 3 13 Combat Bots Only 8 | . 2 2 8 3 . 3 4 Max Kills in Single Turn 3 | 1 1 2 3 1 . 1 2 Gunslinging 1 | . . 1 1 . . . . Exploded 1 | . . 1 . . . . 1 Melee 1 | . . . . . . 1 1 Uniques/NPCs Destroyed . | . . . . . . . . Combat | -11 -10 -10 -9 -9 -9 -8 -8 -------- Run | Yrd Mat Min Mat Min Exi Min Mat Hostile Shots Fired 505 | . 40 24 133 50 . 20 238 Missed 115 | . 8 5 35 12 . 5 50 Damage Taken 5758 | . 473 309 1129 626 . 264 2957 Core 931 | . 46 39 142 117 . 33 554 Absorbed by Shields . | . . . . . . . . Regen/Repaired (Parts) 11 | . . . . . . . 11 Core Remaining (%) 64 | 100 . 66 . . . 27 . Volleys Fired 333 | 3 45 20 129 27 5 . 104 Largest 2 | 2 2 2 2 2 1 . 2 Hottest 103 | 70 90 90 46 46 33 . 103 Shots Fired 620 | 6 87 30 253 55 5 . 184 Gun 613 | 6 87 30 253 55 . . 182 Cannon . | . . . . . . . . Launcher 7 | . . . . . 5 . 2 Special . | . . . . . . . . Kinetic 543 | 3 38 17 253 55 . . 177 Thermal 8 | 3 . . . . . . 5 Explosive 7 | . . . . . 5 . 2 Electromagnetic 62 | . 49 13 . . . . . Robot Hit Streak 13 | 2 10 10 13 9 . . 12 Robot Miss Streak 8 | 1 8 5 7 3 . . 3 Penetration Max 1 | . . . . . . . 1 Secondary Targets 9 | . 1 2 3 2 . . 1 Max Gunslinging Chain 1 | . 1 1 1 1 . . 1 Shots Hit Robots 479 | 3 62 21 172 36 13 13 159 Core Hits 210 | 2 32 8 76 21 5 . 66 Critical Kills 3 | . . . . . . . 3 Critical Parts Destroyed 9 | . 1 . 1 . 1 2 4 Critical Strikes 13 | . 1 . 1 . 1 2 8 Burn 1 | . . . . . . . 1 Destroy 5 | . 1 . 1 . . . 3 Smash 7 | . . . . . 1 2 4 Melee Attacks 125 | . . 6 16 . 16 21 66 Impact 125 | . . 6 16 . 16 21 66 Slashing . | . . . . . . . . Piercing . | . . . . . . . . Sneak Attacks 9 | . . 1 3 . . . 5 Combat Hostiles . | . . . . . . . . Follow-up Attacks . | . . . . . . . . Damage Inflicted 11331 | 31 1047 318 2764 618 1362 561 4630 Guns 7125 | 31 949 235 2499 618 . . 2793 Cannons . | . . . . . . . . Explosions 342 | . 98 53 . . . . 191 Melee 3860 | . . 30 265 . 1362 561 1642 Ramming 4 | . . . . . . . 4 Kinetic 6277 | 19 357 73 2499 618 . . 2711 Thermal 194 | 12 47 53 . . . . 82 Explosive 242 | . 51 . . . . . 191 Electromagnetic 754 | . 592 162 . . . . . Impact 3860 | . . 30 265 . 1362 561 1642 Slashing . | . . . . . . . . Piercing . | . . . . . . . . Highest Corruption 1 | . . . 1 1 1 1 . Average Corruption 1 | . . . 1 1 1 1 . Corruption Purged . | . . . . . . . . Corruption Blocked . | . . . . . . . . Effects 23 | . . . 1 13 7 2 . Message Errors 8 | . . . . 4 3 1 . Matter Fused 2 | . . . 1 1 . . . Heat Flow Errors 3 | . . . . 2 1 . . Energy Discharges 3 | . . . . 3 . . . Parts Rejected 1 | . . . . . . 1 . Data Loss (minor) 4 | . . . . 2 2 . . Data Loss (major) 1 | . . . . . 1 . . Misfires 1 | . . . . 1 . . . Overload Shots . | . . . . . . . . Overflow Damage 1132 | . 5 . 91 . 468 147 421 Projectiles . | . . . . . . . . Explosions 5 | . 5 . . . . . . Melee 1127 | . . . 91 . 468 147 421 Knockbacks 3 | . . . . . 1 . 2 Impact 3 | . . . . . 1 . 2 Kinetic . | . . . . . . . . Secondary . | . . . . . . . . Self-Inflicted Damage 218 | . 111 42 . . . . 65 Shots 5 | . 2 1 . . . . 2 Rammed 1 | . . . . . . . 1 Targets Rammed 1 | . . . . . . . 1 Kicked . | . . . . . . . . Crushed . | . . . . . . . . Highest Temperature 304 | 50 196 222 105 165 207 11 304 Average Temperature 65 | 26 61 71 35 72 111 11 75 Received Heat Transfer 2622 | . 171 72 486 300 . 162 1431 Siege Activations . | . . . . . . . . Robots Corrupted 1 | . 1 . . . . . . Combat Hostiles 1 | . 1 . . . . . . Parts Fried 19 | . 2 . 3 . 3 4 7 Impact Corruptions 33 | . . . 3 . 10 5 15 Robots Melted . | . . . . . . . . Combat Hostiles . | . . . . . . . . Parts Melted 1 | . . . . . . . 1 Heat Transferred 359 | 37 50 50 . . . . 222 Parts Sabotaged . | . . . . . . . . Parts Stolen . | . . . . . . . . Parts Stripped . | . . . . . . . . Power Chain Reactions 2 | . 1 1 . . . . . Alert | -11 -10 -10 -9 -9 -9 -8 -8 ------- Run | Yrd Mat Min Mat Min Exi Min Mat Peak Influence 695 | 5 153 79 449 180 . 125 695 Initial 170 | . 3 33 . 170 . . . Average 135 | 2 66 25 182 67 . 34 223 Maximum Alert Level 2 | . . . 2 . . . 2 Low Security (%) 76 | 100 100 100 61 100 . 100 54 Level 1 13 | . . . 27 . . . 19 Level 2 10 | . . . 11 . . . 26 Level 3 . | . . . . . . . . Level 4 . | . . . . . . . . Level 5 . | . . . . . . . . High Security . | . . . . . . . . Max Security . | . . . . . . . . Squads Dispatched 17 | . 2 . 4 1 . . 10 Investigation 3 | . 1 . 1 . . . 1 Extermination . | . . . . . . . . Reinforcement 7 | . 1 . 3 . . . 3 Assault 1 | . . . . 1 . . . Garrison 6 | . . . . . . . 6 Intercept . | . . . . . . . . Searches Triggered . | . . . . . . . . Construction Impeded . | . . . . . . . . Haulers Reinforced . | . . . . . . . . Active Scanning Responses . | . . . . . . . . Cargo Convoy Interrupts . | . . . . . . . . Stealth | -11 -10 -10 -9 -9 -9 -8 -8 --------- Run | Yrd Mat Min Mat Min Exi Min Mat Distress Signals 12 | . 3 . 4 . . . 5 Communications Jammed . | . . . . . . . . Distress Signals . | . . . . . . . . Times Spotted 172 | . 28 19 55 7 . 6 57 Peak Tracking Total 13 | . 4 13 6 4 . 3 6 Tactical Retreats 7 | . 2 1 3 . . . 1 Traps | -11 -10 -10 -9 -9 -9 -8 -8 ------- Run | Yrd Mat Min Mat Min Exi Min Mat Traps Triggered 2 | . 1 . 1 . . . . Indirectly . | . . . . . . . . Trap Hack Attempts . | . . . . . . . . Triggered . | . . . . . . . . Disarmed . | . . . . . . . . Reprogrammed . | . . . . . . . . Reused . | . . . . . . . . Traps Extracted . | . . . . . . . . Installed . | . . . . . . . . Triggered 1 | . . . . 1 . . . Machines | -11 -10 -10 -9 -9 -9 -8 -8 ---------- Run | Yrd Mat Min Mat Min Exi Min Mat Machines Disabled 6 | . 3 . 1 . . . 2 Max in Single Turn 2 | . 2 . 1 . . . 1 Machines Repaired . | . . . . . . . . Machines Dismantled . | . . . . . . . . Machines Sabotaged . | . . . . . . . . Overloaded Fab Kills . | . . . . . . . . Hacking | -11 -10 -10 -9 -9 -9 -8 -8 --------- Run | Yrd Mat Min Mat Min Exi Min Mat Machines Accessed 20 | . 7 . 4 . 4 . 5 Terminals 13 | . 7 . 3 . . . 3 Fabricators . | . . . . . . . . Repair Stations 1 | . . . . . . . 1 Recycling Units . | . . . . . . . . Scanalyzers 2 | . . . 1 . . . 1 Garrison Access . | . . . . . . . . Total Hacks 105 | . 23 . 20 . 49 . 13 Successful 73 | . 4 . 14 . 49 . 6 Failed 32 | . 19 . 6 . . . 7 Catastrophic 1 | . . . 1 . . . . Database Lockouts . | . . . . . . . . Manual 46 | . 23 . 14 . . . 9 Terminals 46 | . 23 . 14 . . . 9 Fabricators . | . . . . . . . . Repair Stations 2 | . . . . . . . 2 Recycling Units . | . . . . . . . . Scanalyzers 8 | . . . 6 . . . 2 Garrison Access . | . . . . . . . . Terminal Hacks 51 | . . . 2 . 49 . . Record 49 | . . . . . 49 . . Robot Analysis 2 | . . . 2 . . . . Fabricator Hacks . | . . . . . . . . Repair Station Hacks 2 | . . . . . . . 2 Scan Component 1 | . . . . . . . 1 Repair 1 | . . . . . . . 1 Recycling Unit Hacks . | . . . . . . . . Scanalyzer 7 | . . . 6 . . . 1 Insert Component 4 | . . . 3 . . . 1 Analyze 3 | . . . 3 . . . . Garrison Access Hacks . | . . . . . . . . Unauthorized Hacks 13 | . 4 . 6 . . . 3 Terminals 13 | . 4 . 6 . . . 3 Assimilate 2 | . . . 2 . . . . Botnet 9 | . 3 . 3 . . . 3 Operators 2 | . 1 . 1 . . . . Fabricators . | . . . . . . . . Repair Stations . | . . . . . . . . Recycling Units . | . . . . . . . . Scanalyzers . | . . . . . . . . Garrison Access . | . . . . . . . . Data Cores Recovered . | . . . . . . . . Used . | . . . . . . . . Hacking Detections 15 | . 7 . 4 . . . 4 Full Trace Events 5 | . 2 . 2 . . . 1 Feedback Events . | . . . . . . . . Feedback Blocked . | . . . . . . . . Robot Schematics Acquired . | . . . . . . . . Robots Built . | . . . . . . . . Authchips . | . . . . . . . . Time . | . . . . . . . . Total Robot Build Rating . | . . . . . . . . Part Schematics Acquired 3 | . . . 3 . . . . Parts Built . | . . . . . . . . Authchips . | . . . . . . . . Time . | . . . . . . . . Total Part Build Rating . | . . . . . . . . Parts Repaired 1 | . . . . . . . 1 Time 108 | . . . . . . . 108 Parts Recycled . | . . . . . . . . Recycled Matter . | . . . . . . . . Retrieved Matter . | . . . . . . . . Retrieved Components . | . . . . . . . . Parts Scanalyzed 4 | . . . 3 . . . 1 Part Schematics Acquired 3 | . . . 3 . . . . Parts Damaged 1 | . . . . . . . 1 Bothacking | -11 -10 -10 -9 -9 -9 -8 -8 ------------ Run | Yrd Mat Min Mat Min Exi Min Mat Used RIF Installer . | . . . . . . . . Robots Hacked . | . . . . . . . . Non-combat . | . . . . . . . . Combat . | . . . . . . . . Robot Hacks Applied . | . . . . . . . . Relay Couplers Released . | . . . . . . . . Fabnet Peak Effective % . | . . . . . . . . Robots Rewired 3 | . . . . . 3 . . Allies Hacked . | . . . . . . . . Hacks Repelled . | . . . . . . . . Allies | -11 -10 -10 -9 -9 -9 -8 -8 -------- Run | Yrd Mat Min Mat Min Exi Min Mat Total Allies 4 | . . . . 1 3 . . Largest Group 3 | . . . . 1 3 3 . Highest-Rated Group 31 | . . . . 31 24 24 . Highest-Rated Ally 31 | . . . . 31 8 8 . Total Orders . | . . . . . . . . Ally Attacks 13 | . . . . 5 . 8 . Total Damage 129 | . . . . 63 . 66 . Kills 1 | . . . . . . 1 . Allies Corrupted . | . . . . . . . . Allies Melted . | . . . . . . . . Intel | -11 -10 -10 -9 -9 -9 -8 -8 ------- Run | Yrd Mat Min Mat Min Exi Min Mat Robot Analysis Total 2 | . . . 2 . . . . Derelict Logs Recovered 1 | . . . . 1 . . . Drone Launches . | . . . . . . . . Drone Recoveries . | . . . . . . . . Exploration | -11 -10 -10 -9 -9 -9 -8 -8 ------------- Run | Yrd Mat Min Mat Min Exi Min Mat Turns Passed 11716 | 117 1571 1160 3274 1443 1049 420 2682 Spaces Moved 6302 | 60 900 408 1703 904 789 293 1245 Core 11 | 4 . . . . . . 7 Treads 169 | 55 2 . 82 7 . . 23 Legs . | . . . . . . . . Wheels 6122 | 1 898 408 1621 897 789 293 1215 Hover . | . . . . . . . . Flight . | . . . . . . . . Fastest Speed 50 | 50 80 105 110 110 120 105 110 Average Speed 130 | 153 145 127 135 115 120 118 131 Slowest Speed 1100 | 160 320 145 320 320 120 120 1100 Overloaded Moves . | . . . . . . . . Propulsion Burnouts . | . . . . . . . . Robots Hopped . | . . . . . . . . Cave-ins Triggered . | . . . . . . . . Exploration Rate (%) 68 | 4 98 64 72 98 90 60 63 Regions Visited 7 Branch Regions 4 Pre-discovered Areas 2 | . . . . 1 1 . . Known Exits Taken . | . . . . . . . . Unknown Exits Taken 7 | 1 1 1 1 1 1 1 . Scrap Searched 5 | . . 1 . 3 . 1 . Spaces Dug 45 | . . 3 8 . 16 . 18 Terrain Destroyed 93 | . 9 8 8 . 31 . 37 Melee 29 | . . 3 8 . . . 18 Projectile . | . . . . . . . . AOE 64 | . 9 5 . . 31 . 19 Terrain Rammed . | . . . . . . . . Walls Destroyed . | . . . . . . . . Machines Disabled . | . . . . . . . . Actions | -11 -10 -10 -9 -9 -9 -8 -8 --------- Run | Yrd Mat Min Mat Min Exi Min Mat Total 9042 | 76 1077 1010 2382 1251 869 343 2034 Wait 1868 | . 81 558 410 292 5 27 495 Move 6295 | 59 899 407 1702 903 788 292 1245 Hop . | . . . . . . . . Pick Up 93 | 7 23 2 30 5 1 1 24 Fast Attach 18 | 7 3 . 3 . . . 5 Attach 31 | . 3 2 11 3 . . 12 Detach 1 | . . . . . . . 1 Swap 140 | . 10 11 51 13 2 1 52 Drop 86 | . 13 4 30 8 1 1 29 Fire 333 | 3 45 20 129 27 5 . 104 Melee 125 | . . 6 16 . 16 21 66 Ram 1 | . . . . . . . 1 Kick . | . . . . . . . . Crush . | . . . . . . . . Escape Stasis . | . . . . . . . . Rewire 51 | . . . . . 51 . . Trap . | . . . . . . . . Miscellaneous . | . . . . . . . . Route ------- -11/Scrapyard -10/Materials (discovered 4 exits: *Mat x3 / [*Min]) -10/Mines -9/Materials (discovered 3 exits: *Mat x2 / [*Min]) -9/Mines (discovered 4 exits: *Mat x2 / *Exi / [*Zio]) -9/Exiles (discovered 2 exits: [*Min x2]) -8/Mines (discovered 2 exits: *Mat x2) -8/Materials (discovered 1 exit: [*Fac]) History --------- Turn | Location | Event 2 | -11/Scrapyard | Met Revision 17 18 | -11/Scrapyard | Discovered new exit (range 16) 118 | -11/Scrapyard | Entered Materials 316 | -10/Materials | Build established: Mutant 324 | -10/Materials | Discovered new exit (range 16) 626 | -10/Materials | Discovered new exit (range 16) 1098 | -10/Materials | Discovered new exit (range 7) 1219 | -10/Materials | Discovered new exit (range 15) 1689 | -10/Materials | Entered Mines 1692 | -10/Mines | Assembled infested the area 1697 | -10/Mines | Assisted by a Guerilla fighting off Assembled 2730 | -10/Mines | Discovered new exit (range 7) 2849 | -10/Mines | Entered Materials 2849 | -9/Materials | Evolved 2 slots: Utility x2 3152 | -9/Materials | Discovered new exit (range 4) 3930 | -9/Materials | Build established: Scavenger-Mutant 4779 | -9/Materials | Destroyed 8 combat bots 4783 | -9/Materials | Discovered new exit (range 15) 5032 | -9/Materials | Discovered new exit (range 16) 6123 | -9/Materials | Entered Mines 6151 | -9/Mines | Learned location of Storage (-8) 6174 | -9/Mines | Discovered new exit (range 13) 6193 | -9/Mines | Learned Materials trap positions 6707 | -9/Mines | Met a Derelict testing a Signal Generator 6796 | -9/Mines | Core integrity fell below 50% 6962 | -9/Mines | Found a damaged Exp. Sensor Array with a note attached 6966 | -9/Mines | Found Prototype Device 7190 | -9/Mines | A Derelict revealed a hidden shortcut to a safe place 7339 | -9/Mines | Discovered new exit (range 9) 7559 | -9/Mines | Deemed a non-threat by the Exiles lab entrance 7560 | -9/Mines | Discovered new exit (range 5) 7566 | -9/Mines | Entered Exiles 7566 | -9/Exiles | Found Exiles lab destroyed 7584 | -9/Exiles | Discovered new exit (range 15) 7886 | -9/Exiles | Learned location of Zion (-7) 8472 | -9/Exiles | Discovered new exit (range 10) 8615 | -9/Exiles | Entered Mines 8615 | -8/Mines | Accompanied by 3 allies 8694 | -8/Mines | Lost 3 allies 8838 | -8/Mines | Discovered new exit (range 12) 9022 | -8/Mines | Discovered new exit (range 10) 9035 | -8/Mines | Entered Materials 9035 | -8/Materials | Evolved 2 slots: Utility x2 9036 | -8/Materials | Loaded intel: 17 trap records 9038 | -8/Materials | Identified Exp. Sensor Array 9789 | -8/Materials | Repaired Exp. Sensor Array 10077 | -8/Materials | Build established: Scavenger-Assassin 10200 | -8/Materials | Discovered new exit (range 13) 10402 | -8/Materials | Garrison activated, responded to threat 10497 | -8/Materials | Lost 5 parts (1p2n2u) 10672 | -8/Materials | Core integrity fell below 50% 10711 | -8/Materials | Lost 3 parts (1n2w) 10752 | -8/Materials | Build established: Mutant 11310 | -8/Materials | Garrison activated, responded to threat 11368 | -8/Materials | Build established: Scavenger-Mutant 11669 | -8/Materials | Core integrity fell below 20% 11717 | -8/Materials | Destroyed by Y-45 Defender with Beam Rifle Last Messages --------------- 11632_ W-25 Informer sends out distress signal. 11643_ Critical hit (Burn: +37). 11643_ Rocket Launcher destroyed. 11650_ T-07 Excavator destroyed. 11661_ Wheel destroyed. 11664_ Processing Tank disabled. 11665_ Gauss Rifle destroyed. 11667_ Critical hit (Burn: +37). 11676_ Hrd. Light Armor Plating destroyed. 11697_ Lgt. Nuclear Core destroyed. 11700_ Electrolysis Chamber disabled. 11702_ Destroyed Heat Sink. 11702_ Y-45 Defender system corrupted by crushing effect. 11703_ Y-45 Defender system terminally corrupted. 11714_ Hrd. Medium Armor Plating destroyed. 11714_ Mak. Hammer destroyed. 11717_ Critical hit (Burn: +37). [Achievement: Achiever] Map ----- +----------------------------------------------------+ | ####### [[ """ #?#??????????????????????????????? | | ##??### [] """ #??#?????????????????????????????? | | ###?#??# #?#?#????????????????????????????? | | ######### #######????????????????????????????????? | | T #####?????????????????????????????????????? | | % #??????#??????????????????????????????????? | | ! = #??#??????????????????????????????????????? | | #############? ?????????????????????????????????? | | # # ????????#??? #???????????????????? | | # # """ """ #"???????????? #???????????????????? | | # # """ """ #""???????#??? #???????????????????? | | # # """ """ #?""?????????? #???????????????????? | | # # #?? ????????## #?#?????????????????? | | # # ##?#+#?##??#?#^^^#???????????????????? | | # # #?## #??#??#?? #???????????????????? | | #!# #?## # #?#??# #???????????????????? | | #%#####+######## + ????# #??#????????????????? | | #* ^^ ^ # ?????## ##?#????????????????? | | # ^ ###??#??# ###?????????????????? | | # """" """"" ####### ##########????????? | | # """" """"" =%! ????????? | | #=! """" """ = ???????? | | [= ????????? | | [* #"##"## # #??????????? | | [= ###################%# ##?????????????????? | | = % #######?# @# ##?????????????????? | | * """ #######?# "" Y #? #??????????????????? | | """ #######?# """ Y/ #??????????????????? | | # """ ######### """ #?? #??????????????????? | | ######?## #?? #??????????????????? | | # =##?###### "T" #???#??????????????????? | | #+#########################??????????????????????? | | [%####?#######??#??#??????????????????????? | | !*###?############????#???????????????????? | | #############?#?#???????????????????????? | | ################???#????????????????????? | | #############???????????????????????????? | | ##########???#??????????????????????????? | | ###############?######?#?????????????????????????? | | | | | | | | | | | | | | | | | | | | | | | +----------------------------------------------------+ Best States ------------- Heat Dissipation 31 Energy Generation 18 Energy Capacity 265 Matter Stores 450 Matter Capacity 450 Sight Range 16 Robot Scan Range 20 Terrain Scan Range 16 Terrain Scan Density 210 Armor Coverage 450 Evasion (%) 41 Recoil Reduction 1 Offensive Hacking 20 Authchip Count 3 Item Schematics ----------------- Hacking Suite | -9/Materials | Scanalyzed Structural Scanner | -9/Materials | Scanalyzed Imp. Terrain Scanner | -9/Materials | Scanalyzed Robot Schematics ------------------ None Fabricated ------------ Nothing Alien Tech Used ----------------- None Achievements -------------- A New Friend Achiever Slippery One Challenges ------------ None Game ------ Seed DamperImpactChainsword Manual? 0 Play Time 01:39:10 Cumulative 37.0 hours Start 2024.03.11 @ 15:00:13 End 2024.03.11 @ 20:55:29 Sessions 3 Manual Loads 0 Difficulty Rogue Special Mode None Game No. 37 Rogue 37 Adventurer 0 Explorer 0 Win Type - Total 0 Types 0/0/0/0/0/0/0/0/0 Lore% 22 Gallery% 27 Achievement% 25 Wizard Run 0 Options --------- Layout 1 ASCII 0 Keyboard 0 Movement Numpad Keybinds 0 Fullscreen 2 Font 24/X11 Map View 50x35 Zoom Use 0% Tactical HUD 1 Map Filters NONE Filters NONE Steam 0 RUN: b6a6faa7-ea9a-41f0-b7a0-7cea93e41dcc